Cogmind - Beta 11.1 @@@ ROGUE MODE // 2022.06.09 @ 05:52:19 Player: woegarden Result: Destroyed by S-27 Virus with Autogun Performance ------------- Evolutions (4) 2000 Regions Visited (11) 2200 Robots Destroyed (3) 15 Value Destroyed (75) 75 Prototype IDs (24) 480 Alien Tech Used (0) 0 Bonus (1270) 1270 TOTAL SCORE: 6040 Bonus ------- Follower Combat Kills 70 Entered Garrisons 400 Used RIF Installer 500 Aligned with FarCom 300 Cogmind --------- Core Integrity 0/850 Matter 151/300 Energy 100/100 System Corruption 3% Temperature Cool (0) Movement Core (50) Location -6/Garrison Parts ------- > --- POWER (2) -------- (None) > --- PROPULSION (4) --- (None) > --- UTILITY (6) ------ (None) > --- WEAPON (3) ------- (None) > --- INVENTORY (5) ---- Cooling System Trap Scanner Advanced ECM Suite Trap Reconfigurator Remote Datajack Peak State ------------ > --- POWER ------------ Light Deuterium Engine Micro Nuclear Core > --- PROPULSION ------- Flight Unit Xenon Bombardment Thruster Xenon Bombardment Thruster Xenon Bombardment Thruster > --- UTILITY ---------- Medium Storage Unit Advanced Weight Redist. System Seismic Detector Advanced ECM Suite Improved Trap Extractor > --- WEAPON ----------- Heavy Particle Cannon Autogun > --- INVENTORY -------- Light Nuclear Core Cooling System Compact Battery Advanced Weight Redist. System Trap Scanner ECM Suite Advanced Shield Generator Trap Reconfigurator Remote Datajack [Rating: 41] Favorites ----------- Power Light Ion Engine Engine Light Ion Engine Power Core Light Nuclear Core Propulsion Flight Unit Flight Unit Flight Unit Utility Medium Storage Unit Device Advanced Weight Redist. System Storage Medium Storage Unit Protection Hardened Medium Armor Plating Weapon Autogun Energy Gun Thermic Laser Energy Cannon Heavy Particle Cannon Ballistic Gun Autogun Build | -11 -10 -10 -10 -9 -8 -8 -7 -7 -7 -6 -6 ------- Run | Scr Mat Min Exi Min Mat Gar Fac Was Fac Fac Gar Slots Evolved 8 | . . . . . 4 . 2 . . 2 . Power 1 | . . . . . . . 1 . . . . Propulsion 2 | . . . . . 2 . . . . . . Utility 4 | . . . . . 2 . 1 . . 1 . Weapon 1 | . . . . . . . . . . 1 . Parts Attached 41 | . . . . 9 7 . 15 1 3 . 6 Power 9 | . . . . 2 1 . 3 . 2 . 1 Engine 6 | . . . . 2 1 . 2 . 1 . . Core 3 | . . . . . . . 1 . 1 . 1 Reactor . | . . . . . . . . . . . . Propulsion 10 | . . . . 4 3 . 3 . . . . Treads . | . . . . . . . . . . . . Leg . | . . . . . . . . . . . . Wheel . | . . . . . . . . . . . . Hover . | . . . . . . . . . . . . Flight 10 | . . . . 4 3 . 3 . . . . Utility 16 | . . . . 2 2 . 7 1 1 . 3 Device 13 | . . . . 1 1 . 6 1 1 . 3 Storage 2 | . . . . 1 . . 1 . . . . Processor . | . . . . . . . . . . . . Hackware . | . . . . . . . . . . . . Protection 1 | . . . . . 1 . . . . . . Artifact . | . . . . . . . . . . . . Weapon 6 | . . . . 1 1 . 2 . . . 2 Energy Gun 1 | . . . . . . . . . . . 1 Energy Cannon 2 | . . . . . 1 . . . . . 1 Ballistic Gun 3 | . . . . 1 . . 2 . . . . Ballistic Cannon . | . . . . . . . . . . . . Launcher . | . . . . . . . . . . . . Special Weapon . | . . . . . . . . . . . . Impact Weapon . | . . . . . . . . . . . . Slashing Weapon . | . . . . . . . . . . . . Piercing Weapon . | . . . . . . . . . . . . Special Melee Weapon . | . . . . . . . . . . . . Unidentified Prototypes 1 | . . . . . 1 . . . . . . Parts Lost 12 | . . . . . 2 . . . 1 . 9 Power 3 | . . . . . . . . . 1 . 2 Propulsion 5 | . . . . . 1 . . . . . 4 Utility 4 | . . . . . 1 . . . . . 3 Weapon . | . . . . . . . . . . . . Highest Loss Streak 8 | . . . . . 2 . . . 1 . 8 To Critical Strikes . | . . . . . . . . . . . . Average Slot Usage (%) 53 | . . . . 73 75 72 75 90 90 80 62 Engine 5 | . . . . 13 7 9 7 7 5 6 4 Core 2 | . . . . . . . 5 7 7 6 4 Flight 19 | . . . . 26 33 36 30 30 30 26 19 Device 13 | . . . . 12 16 9 15 28 30 26 20 Storage 5 | . . . . 7 9 9 7 7 7 6 6 Ballistic Gun 5 | . . . . 12 9 9 7 7 7 6 2 Naked Turns 551 | . 43 123 373 9 . . . . . . 3 Heaviest Build 37 | . . . . 14 20 19 27 28 31 31 37 Greatest Support 31 | 3 3 3 3 14 22 22 31 31 31 31 31 Greatest Overweight (x) 6 | . . . . . 6 . . 1 . . 3 Average Overweight (x) . | . . . . . . . . . . . . Largest Inventory Capacity 10 | 5 5 5 5 10 10 10 10 10 10 10 10 Average Capacity 8 | 5 5 5 5 7 10 10 10 10 10 10 9 Most Carried 10 | 4 . . 4 10 10 9 10 10 10 10 10 Average Carried 6 | 2 . . 2 6 9 9 8 9 9 10 9 Final Capacity 10 | 5 5 5 5 10 10 10 10 10 10 10 5 Final Carried 10 | . . . 4 10 9 9 10 9 10 10 5 Class Distribution -------------------- 42% | Mutant 31% | Sprinter 17% | Scavenger-Mutant 8% | Scavenger-Sprinter Dominant Class ---------------- Mutant | -10/Materials Mutant | -10/Mines Mutant | -10/Exiles Scavenger-Mutant | -9/Mines Scavenger-Sprinter | -8/Materials Scavenger-Sprinter | -8/Garrison Mutant | -7/Factory Sprinter | -7/Waste Sprinter | -7/Factory Sprinter | -6/Factory Sprinter | -6/Garrison Resources | -11 -10 -10 -10 -9 -8 -8 -7 -7 -7 -6 -6 ----------- Run | Scr Mat Min Exi Min Mat Gar Fac Was Fac Fac Gar Matter Collected 437 | 200 . . . 93 . . 100 . . . 44 Remotely . | . . . . . . . . . . . . Salvage Created 85 | . . . . 15 . . . . 26 . 44 Parts 8 | . . . . 1 . . . . 5 . 2 Haulers Intercepted . | . . . . . . . . . . . . Recyclers Shooed . | . . . . . . . . . . . . Parts Field Recycled . | . . . . . . . . . . . . Retrieved Matter . | . . . . . . . . . . . . Parts Self-Destructed . | . . . . . . . . . . . . Prevented . | . . . . . . . . . . . . Kills | -11 -10 -10 -10 -9 -8 -8 -7 -7 -7 -6 -6 ------- Run | Scr Mat Min Exi Min Mat Gar Fac Was Fac Fac Gar Combat Hostiles Destroyed 2 | . . . . 1 . . . . . . 1 Guns 1 | . . . . 1 . . . . . . . Cannons 1 | . . . . . . . . . . . 1 Classes Destroyed 3 | . . . . 1 . . . . 1 . 1 Builder 1 | . . . . . . . . . 1 . . Swarmer 1 | . . . . 1 . . . . . . . Programmer 1 | . . . . . . . . . . . 1 Best Kill Streak 1 | . . . . 1 . . . . 1 . 1 Combat Bots Only 1 | . . . . 1 . . . . . . 1 Max Kills in Single Turn 1 | . . . . 1 . . . . 1 . 1 Gunslinging . | . . . . . . . . . . . . Exploded . | . . . . . . . . . . . . Melee . | . . . . . . . . . . . . Uniques/NPCs Destroyed . | . . . . . . . . . . . . Combat | -11 -10 -10 -10 -9 -8 -8 -7 -7 -7 -6 -6 -------- Run | Scr Mat Min Exi Min Mat Gar Fac Was Fac Fac Gar Damage Taken 2163 | . 52 80 . 106 197 17 . . 148 . 1563 Core 1166 | . 52 80 . 74 75 . . . 31 . 854 Absorbed by Shields 95 | . . . . . . . . . . . 95 Core Remaining (%) 74 | 100 . . . 17 . 86 . . 95 . . Volleys Fired 13 | . . . . 3 . . . . . . 10 Largest 1 | . . . . 1 . . . . . . 1 Hottest 85 | . . . . 20 . . . . . . 85 Shots Fired 14 | . . . . 3 . . . . 1 . 10 Gun 9 | . . . . 3 . . . . 1 . 5 Cannon 5 | . . . . . . . . . . . 5 Launcher . | . . . . . . . . . . . . Special . | . . . . . . . . . . . . Kinetic 5 | . . . . 3 . . . . 1 . 1 Thermal 9 | . . . . . . . . . . . 9 Explosive . | . . . . . . . . . . . . Electromagnetic . | . . . . . . . . . . . . Robot Hit Streak 3 | . . . . 1 . . . . 2 . 3 Robot Miss Streak 1 | . . . . 1 . . . . . . 1 Penetration Max . | . . . . . . . . . . . . Secondary Targets . | . . . . . . . . . . . . Shots Hit Robots 6 | . . . . 2 . . . . 1 . 3 Core Hits 5 | . . . . 1 . . . . 1 . 3 Critical Kills . | . . . . . . . . . . . . Critical Parts Destroyed . | . . . . . . . . . . . . Critical Strikes . | . . . . . . . . . . . . Melee Attacks . | . . . . . . . . . . . . Impact . | . . . . . . . . . . . . Slashing . | . . . . . . . . . . . . Piercing . | . . . . . . . . . . . . Sneak Attacks . | . . . . . . . . . . . . Combat Hostiles . | . . . . . . . . . . . . Follow-up Attacks . | . . . . . . . . . . . . Damage Inflicted 139 | . 5 8 . 17 1 . . . 13 . 95 Guns 30 | . . . . 17 . . . . 13 . . Cannons 93 | . . . . . . . . . . . 93 Explosions . | . . . . . . . . . . . . Melee . | . . . . . . . . . . . . Ramming 16 | . 5 8 . . 1 . . . . . 2 Kinetic 30 | . . . . 17 . . . . 13 . . Thermal 93 | . . . . . . . . . . . 93 Explosive . | . . . . . . . . . . . . Electromagnetic . | . . . . . . . . . . . . Impact . | . . . . . . . . . . . . Slashing . | . . . . . . . . . . . . Piercing . | . . . . . . . . . . . . Highest Corruption 7 | . . . . . . . . 6 7 . 3 Average Corruption 5 | . . . . . . . . 6 6 . 2 Corruption Purged . | . . . . . . . . . . . . Corruption Blocked . | . . . . . . . . . . . . Effects 11 | . . . . . . . . 1 8 . 2 Matter Fused 4 | . . . . . . . . . 3 . 1 Heat Flow Errors 1 | . . . . . . . . . 1 . . Energy Discharges 2 | . . . . . . . . 1 1 . . Parts Rejected 1 | . . . . . . . . . 1 . . Data Loss (minor) 1 | . . . . . . . . . . . 1 Data Loss (major) 1 | . . . . . . . . . 1 . . Misfires 1 | . . . . . . . . . 1 . . Overload Shots . | . . . . . . . . . . . . Overflow Damage . | . . . . . . . . . . . . Projectiles . | . . . . . . . . . . . . Explosions . | . . . . . . . . . . . . Melee . | . . . . . . . . . . . . Knockbacks . | . . . . . . . . . . . . Impact . | . . . . . . . . . . . . Kinetic . | . . . . . . . . . . . . Secondary . | . . . . . . . . . . . . Self-Inflicted Damage 7 | . 2 4 . . . . . . . . 1 Shots . | . . . . . . . . . . . . Rammed 5 | . 2 1 . . 1 . . . . . 1 Targets Rammed 5 | . 2 1 . . 1 . . . . . 1 Kicked . | . . . . . . . . . . . . Crushed . | . . . . . . . . . . . . Highest Temperature 208 | . . . . 6 2 . 1 1 167 . 208 Average Temperature 57 | . . . . 3 2 . 1 1 42 . 85 Received Heat Transfer 393 | . . . . . 135 9 . . 24 . 225 Siege Activations . | . . . . . . . . . . . . Robots Corrupted . | . . . . . . . . . . . . Combat Hostiles . | . . . . . . . . . . . . Parts Fried . | . . . . . . . . . . . . Impact Corruptions . | . . . . . . . . . . . . Robots Melted . | . . . . . . . . . . . . Combat Hostiles . | . . . . . . . . . . . . Parts Melted . | . . . . . . . . . . . . Heat Transferred 51 | . . . . . . . . . . . 51 Parts Sabotaged 1 | . . . . . . . . . . . 1 Parts Stolen . | . . . . . . . . . . . . Parts Stripped . | . . . . . . . . . . . . Power Chain Reactions . | . . . . . . . . . . . . Missiles Intercepted . | . . . . . . . . . . . . Alert | -11 -10 -10 -10 -9 -8 -8 -7 -7 -7 -6 -6 ------- Run | Scr Mat Min Exi Min Mat Gar Fac Was Fac Fac Gar Peak Influence 147 | . 45 32 . 147 78 39 43 45 117 56 99 Initial 57 | . . 17 . . 57 24 20 15 17 56 39 Average 56 | . 12 23 . 81 54 32 28 29 68 56 72 Maximum Alert Level . | . . . . . . . . . . . . Low Security (%) 100 | 100 100 100 . 100 100 100 100 100 100 100 100 Level 1 . | . . . . . . . . . . . . Level 2 . | . . . . . . . . . . . . Level 3 . | . . . . . . . . . . . . Level 4 . | . . . . . . . . . . . . Level 5 . | . . . . . . . . . . . . High Security . | . . . . . . . . . . . . Max Security . | . . . . . . . . . . . . Squads Dispatched 1 | . . . . . . . . . 1 . . Investigation . | . . . . . . . . . . . . Extermination . | . . . . . . . . . . . . Reinforcement 1 | . . . . . . . . . 1 . . Assault . | . . . . . . . . . . . . Garrison . | . . . . . . . . . . . . Intercept . | . . . . . . . . . . . . Searches Triggered . | . . . . . . . . . . . . Construction Impeded . | . . . . . . . . . . . . Haulers Reinforced . | . . . . . . . . . . . . Active Scanning Responses . | . . . . . . . . . . . . Cargo Convoy Interrupts . | . . . . . . . . . . . . Stealth | -11 -10 -10 -10 -9 -8 -8 -7 -7 -7 -6 -6 --------- Run | Scr Mat Min Exi Min Mat Gar Fac Was Fac Fac Gar Distress Signals 3 | . 1 . . . . . . . 1 1 . Communications Jammed . | . . . . . . . . . . . . Distress Signals . | . . . . . . . . . . . . Times Spotted 62 | . 6 6 . 9 4 3 . 6 5 1 22 Peak Tracking Total 21 | . 6 3 . 4 3 3 . 6 3 2 21 Tactical Retreats 7 | . 1 1 . . . . . . 3 . 2 Traps | -11 -10 -10 -10 -9 -8 -8 -7 -7 -7 -6 -6 ------- Run | Scr Mat Min Exi Min Mat Gar Fac Was Fac Fac Gar Traps Triggered 5 | . . . . . . . 1 . . . 4 Indirectly . | . . . . . . . . . . . . Trap Hack Attempts . | . . . . . . . . . . . . Triggered . | . . . . . . . . . . . . Disarmed . | . . . . . . . . . . . . Reprogrammed . | . . . . . . . . . . . . Reused . | . . . . . . . . . . . . Traps Extracted . | . . . . . . . . . . . . Installed . | . . . . . . . . . . . . Triggered . | . . . . . . . . . . . . Machines | -11 -10 -10 -10 -9 -8 -8 -7 -7 -7 -6 -6 ---------- Run | Scr Mat Min Exi Min Mat Gar Fac Was Fac Fac Gar Machines Disabled . | . . . . . . . . . . . . Max in Single Turn . | . . . . . . . . . . . . Machines Sabotaged . | . . . . . . . . . . . . Garrisons Compromised . | . . . . . . . . . . . . Overloaded Fab Kills . | . . . . . . . . . . . . Hacking | -11 -10 -10 -10 -9 -8 -8 -7 -7 -7 -6 -6 --------- Run | Scr Mat Min Exi Min Mat Gar Fac Was Fac Fac Gar Machines Accessed 4 | . . . 1 . 1 . 1 . . 1 . Terminals 1 | . . . . . . . 1 . . . . Fabricators . | . . . . . . . . . . . . Repair Stations . | . . . . . . . . . . . . Recycling Units . | . . . . . . . . . . . . Scanalyzers . | . . . . . . . . . . . . Garrison Access 2 | . . . . . 1 . . . . 1 . Total Hacks 5 | . . . 1 . 1 . 2 . . 1 . Successful 4 | . . . 1 . 1 . 1 . . 1 . Failed 1 | . . . . . . . 1 . . . . Catastrophic 1 | . . . . . . . 1 . . . . Database Lockouts . | . . . . . . . . . . . . Manual 1 | . . . 1 . . . . . . . . Terminals 2 | . . . . . . . 2 . . . . Fabricators . | . . . . . . . . . . . . Repair Stations . | . . . . . . . . . . . . Recycling Units . | . . . . . . . . . . . . Scanalyzers . | . . . . . . . . . . . . Garrison Access 2 | . . . . . 1 . . . . 1 . Terminal Hacks 2 | . . . 1 . . . 1 . . . . Record 1 | . . . . . . . 1 . . . . EX-Prototype ID Bank 1 | . . . 1 . . . . . . . . Fabricator Hacks . | . . . . . . . . . . . . Repair Station Hacks . | . . . . . . . . . . . . Recycling Unit Hacks . | . . . . . . . . . . . . Scanalyzer . | . . . . . . . . . . . . Garrison Access Hacks 2 | . . . . . 1 . . . . 1 . Unlock Access 2 | . . . . . 1 . . . . 1 . Unauthorized Hacks . | . . . . . . . . . . . . Terminals . | . . . . . . . . . . . . Fabricators . | . . . . . . . . . . . . Repair Stations . | . . . . . . . . . . . . Recycling Units . | . . . . . . . . . . . . Scanalyzers . | . . . . . . . . . . . . Garrison Access . | . . . . . . . . . . . . Data Cores Recovered . | . . . . . . . . . . . . Used . | . . . . . . . . . . . . Hacking Detections 3 | . . . . . 1 . 1 . . 1 . Full Trace Events . | . . . . . . . . . . . . Feedback Events . | . . . . . . . . . . . . Feedback Blocked . | . . . . . . . . . . . . Robot Schematics Acquired . | . . . . . . . . . . . . Robots Built . | . . . . . . . . . . . . Authchips . | . . . . . . . . . . . . Time . | . . . . . . . . . . . . Total Robot Build Rating . | . . . . . . . . . . . . Part Schematics Acquired . | . . . . . . . . . . . . Parts Built . | . . . . . . . . . . . . Authchips . | . . . . . . . . . . . . Time . | . . . . . . . . . . . . Total Part Build Rating . | . . . . . . . . . . . . Parts Repaired . | . . . . . . . . . . . . Time . | . . . . . . . . . . . . Parts Recycled . | . . . . . . . . . . . . Recycled Matter . | . . . . . . . . . . . . Retrieved Matter . | . . . . . . . . . . . . Retrieved Components . | . . . . . . . . . . . . Parts Scanalyzed . | . . . . . . . . . . . . Part Schematics Acquired . | . . . . . . . . . . . . Parts Damaged . | . . . . . . . . . . . . Bothacking | -11 -10 -10 -10 -9 -8 -8 -7 -7 -7 -6 -6 ------------ Run | Scr Mat Min Exi Min Mat Gar Fac Was Fac Fac Gar Used RIF Installer 1 | . . . . . . 1 . . . . . Robots Hacked . | . . . . . . . . . . . . Non-combat . | . . . . . . . . . . . . Combat . | . . . . . . . . . . . . Robot Hacks Applied . | . . . . . . . . . . . . Relay Couplers Released . | . . . . . . . . . . . . Fabnet Peak Effective % . | . . . . . . . . . . . . Robots Rewired . | . . . . . . . . . . . . Allies Hacked . | . . . . . . . . . . . . Hacks Repelled . | . . . . . . . . . . . . Allies | -11 -10 -10 -10 -9 -8 -8 -7 -7 -7 -6 -6 -------- Run | Scr Mat Min Exi Min Mat Gar Fac Was Fac Fac Gar Total Allies 3 | . . . . 2 . . . 1 . . . Largest Group 2 | . . . . 2 1 . . 1 . . . Highest-Rated Group 38 | . . . . 38 31 . . 31 . . . Highest-Rated Ally 31 | . . . . 31 31 . . 31 . . . Total Orders . | . . . . . . . . . . . . Ally Attacks 28 | . . . . 11 6 . . 11 . . . Total Damage 461 | . . . . 170 86 . . 205 . . . Kills 6 | . . . . 5 1 . . . . . . Allies Corrupted . | . . . . . . . . . . . . Allies Melted . | . . . . . . . . . . . . Intel | -11 -10 -10 -10 -9 -8 -8 -7 -7 -7 -6 -6 ------- Run | Scr Mat Min Exi Min Mat Gar Fac Was Fac Fac Gar Robot Analysis Total . | . . . . . . . . . . . . Derelict Logs Recovered 3 | . . 2 . 1 . . . . . . . Drone Launches . | . . . . . . . . . . . . Drone Recoveries . | . . . . . . . . . . . . Exploration | -11 -10 -10 -10 -9 -8 -8 -7 -7 -7 -6 -6 ------------- Run | Scr Mat Min Exi Min Mat Gar Fac Was Fac Fac Gar Turns Passed 1796 | 3 43 123 373 322 94 69 194 42 274 91 168 Spaces Moved 3594 | 1 81 233 731 371 89 198 449 94 817 291 239 Core 1099 | 1 81 233 731 16 8 . . . . . 29 Treads . | . . . . . . . . . . . . Legs . | . . . . . . . . . . . . Wheels . | . . . . . . . . . . . . Hover . | . . . . . . . . . . . . Flight 2495 | . . . . 355 81 198 449 94 817 291 210 Fastest Speed 31 | 50 50 50 50 37 31 31 31 31 31 31 31 Average Speed 38 | 50 50 50 50 37 46 31 32 32 31 31 42 Slowest Speed 350 | 50 50 50 50 50 350 31 34 114 31 31 200 Overloaded Moves . | . . . . . . . . . . . . Propulsion Burnouts . | . . . . . . . . . . . . Robots Hopped 16 | . . . . 10 . . 1 . 3 . 2 Cave-ins Triggered . | . . . . . . . . . . . . Exploration Rate (%) 38 | 2 38 54 91 54 12 41 12 86 23 7 47 Regions Visited 11 Branch Regions 3 Pre-discovered Areas 1 | . . 1 . . . . . . . . . Known Exits Taken 2 | . . . . . 1 . . . . 1 . Unknown Exits Taken 6 | 1 1 1 1 1 . . . . 1 . . Scrap Searched 2 | . . . . 2 . . . . . . . Spaces Dug . | . . . . . . . . . . . . Terrain Destroyed . | . . . . . . . . . . . . Melee . | . . . . . . . . . . . . Projectile . | . . . . . . . . . . . . AOE . | . . . . . . . . . . . . Terrain Rammed . | . . . . . . . . . . . . Walls Destroyed . | . . . . . . . . . . . . Machines Disabled . | . . . . . . . . . . . . Actions | -11 -10 -10 -10 -9 -8 -8 -7 -7 -7 -6 -6 --------- Run | Scr Mat Min Exi Min Mat Gar Fac Was Fac Fac Gar Total 3971 | 5 82 238 738 539 139 204 501 105 834 291 295 Wait 240 | . . 5 . 152 35 7 11 9 10 . 11 Move 3555 | . 80 232 730 350 89 197 447 93 811 291 235 Hop 15 | . . . . 10 . . 1 . 2 . 2 Pick Up 33 | . . . 6 10 3 . 9 1 4 . . Fast Attach 18 | . . . . 5 3 . 7 . 2 . 1 Attach 14 | . . . . 1 4 . 3 1 . . 5 Detach 10 | . . . . . 1 . 3 . . . 6 Swap 9 | . . . . 3 . . 5 . 1 . . Drop 38 | 5 . . 2 5 3 . 15 1 4 . 3 Fire 13 | . . . . 3 . . . . . . 10 Melee . | . . . . . . . . . . . . Ram 5 | . 2 1 . . 1 . . . . . 1 Kick . | . . . . . . . . . . . . Crush . | . . . . . . . . . . . . Escape Stasis 21 | . . . . . . . . . . . 21 Rewire . | . . . . . . . . . . . . Trap . | . . . . . . . . . . . . Miscellaneous . | . . . . . . . . . . . . Route ------- -11/Scrapyard -10/Materials -10/Mines -10/Exiles -9/Mines -8/Materials -8/Garrison -7/Factory -7/Waste -7/Factory -6/Factory -6/Garrison History --------- Turn | Location | Event 1 | -11/Scrapyard | Released all parts (6) 4 | -11/Scrapyard | Discovered new exit (range 0) 4 | -11/Scrapyard | Entered Materials 43 | -10/Materials | Discovered new exit (range 8) 47 | -10/Materials | Entered Mines 126 | -10/Mines | Learned Materials interactive machine intel 126 | -10/Mines | Learned location of Storage (-7) 166 | -10/Mines | Received a Rocket Launcher from a helpful Derelict 167 | -10/Mines | Core integrity fell below 50% 168 | -10/Mines | Deemed a non-threat by the Exiles lab entrance 168 | -10/Mines | Discovered new exit (range 5) 170 | -10/Mines | Entered Exiles 183 | -10/Exiles | Met 8R-AWN 191 | -10/Exiles | Met EX-HEX 206 | -10/Exiles | Met EX-BIN 212 | -10/Exiles | Aligned with FarCom system 213 | -10/Exiles | Given EX-Vault access code 224 | -10/Exiles | Opened EX-Vault 228 | -10/Exiles | Found Trap Reconfigurator 239 | -10/Exiles | Warned to stay clear of 0b10 Research branches 256 | -10/Exiles | Met EX-DEC 309 | -10/Exiles | Build established: Mutant 355 | -10/Exiles | Visited The Gauntlet 537 | -10/Exiles | Discovered new exit (range 10) 543 | -10/Exiles | Left Exiles lab with Trap Reconfigurator 543 | -10/Exiles | Entered Mines 566 | -9/Mines | Core integrity fell below 20% 698 | -9/Mines | Learned Materials garrison access intel 720 | -9/Mines | Assembled infested the area 725 | -9/Mines | Assisted by a Guerilla fighting off Assembled 740 | -9/Mines | Discovered new exit (range 10) 860 | -9/Mines | Build established: Scavenger-Mutant 865 | -9/Mines | Entered Materials 865 | -8/Materials | Accompanied by 1 ally 865 | -8/Materials | Evolved 4 slots: Propulsion x2, Utility x2 866 | -8/Materials | Loaded intel: 19 interactive machine locations 867 | -8/Materials | Loaded intel: 1 garrison access location 870 | -8/Materials | Led the pair of lost Derelicts to an unsafe place 959 | -8/Materials | Identified exit to Garrison 959 | -8/Materials | Entered Garrison 961 | -8/Garrison | Installed Relay Interface Framework 999 | -8/Garrison | Discovered new exit (range 12) 1018 | -8/Garrison | Triggered checkpoint 1028 | -8/Garrison | Entered Factory 1028 | -7/Factory | Evolved 2 slots: Power x1, Utility x1 1163 | -7/Factory | Discovered new exit (range 15) 1222 | -7/Factory | Sucked down chute 1222 | -7/Factory | Entered Waste 1223 | -7/Waste | Met a frightened Derelict 1229 | -7/Waste | Spotted C-40 Crusher 1232 | -7/Waste | Spotted C-40 Crusher 1237 | -7/Waste | EMP discharged 1240 | -7/Waste | Spotted C-40 Crusher 1246 | -7/Waste | Spotted C-40 Crusher 1246 | -7/Waste | Spotted C-40 Crusher 1253 | -7/Waste | Spotted C-40 Crusher 1259 | -7/Waste | Discovered new exit (range 11) 1264 | -7/Waste | Entered Factory 1488 | -7/Factory | Build established: Sprinter 1520 | -7/Factory | Discovered new exit (range 14) 1538 | -7/Factory | Entered another Factory area 1538 | -6/Factory | Evolved 2 slots: Utility x1, Weapon x1 1629 | -6/Factory | Identified exit to Garrison 1629 | -6/Factory | Entered Garrison 1680 | -6/Garrison | Triggered checkpoint 1746 | -6/Garrison | Triggered checkpoint 1772 | -6/Garrison | Core integrity fell below 50% 1786 | -6/Garrison | Core integrity fell below 20% 1787 | -6/Garrison | Lost 8 parts (2p4n2u) 1797 | -6/Garrison | Destroyed by S-27 Virus with Autogun Last Messages --------------- 01762_ Triggered Stasis Trap. 01762_ A bubble of rippling energy engulfs the area. 01762_ Field strength at 94. 01763_ Field strength at 88. 01764_ Field strength at 82. 01765_ Field strength at 72. 01766_ Field strength at 58. 01767_ Field strength at 52. 01768_ Field strength at 33. 01769_ Field strength at 23. 01770_ Field strength at 10. 01771_ Stasis field depleted. 01779_ S-27 Virus destroyed. 01782_ Adv. Weight Redist. System blown off. 01782_ E-15 Imp destroyed. 01784_ Slammed into E-15 Imp. 01784_ E-15 Imp destroyed. 01791_ Critical hit (Burn: +37). 01794_ Med. Storage Unit destroyed. 01794_ S-27 Virus destroyed. Map ----- +----------------------------------------------------+ | ?????????????????????????????????????????????????? | | ?????????????????????????????????????????????????? | | ?????????????????????????????????????????????????? | | ?????????????????????????????????????????????????? | | ?????????????????????????????????????????????????? | | ?????????????????????????????????????????????????? | | ?????????????????????????????????????????????????? | | ?????????????????????????????????????????????????? | | ?????????????????????????????????????????????????? | | ?????????????????????????????????????????????????? | | ?????????????????????????????????????????????????? | | ?????????????????????????????????????????????????? | | ??????????????????????????????????##?????????????? | | ?????????????????????????????????? ?????????????? | | ?????????????????????????????????? ?????????????? | | ?????????????????????????????????? #????????????? | | ?????????????????????????????????? #????????????? | | ?????????????????????????????????? #????????????? | | ?????????????????????????????????# ###??????????? | | ????????????????????????????????? #??????????? | | ????????????????????????????????? ???????????? | | ????????????????????????????????? ????????????? | | ?????????????????????????????????# #????????????? | | ?????????????????????????????????# #????????????? | | ????????????????????# ###########% ###########??? | | ????????????????????# @s!gsg !%= #??? | | ????????????????????# s*ssg/gg== #??? | | ????????????????????##############Y ######?? #??? | | ?????????????????????????????????# g#??????? #??? | | ?????????????????????????????????# s#??????? #??? | | ?????????????????????????????????#%g#??????? #??? | | ?????????????????????????????????# b#### ##? #??? | | ?????????????????????????????????# + # #??? | | ?????????????????????????????????# ### ## # #??? | | ?????????????????????????????????# Y#?????## ##"" | | ?????????????????????????????????# ####### | | ?????????????????????????????????# | | ?????????????????????????????????# | | ?????????????????????????????????##+####### ## | | ??????????????????????????????????# #???### ## | | ??????????????????????????????????# #####" | | ??????????????????????????????????# /%" | | ??????????????????????????????????#######" | | ????????????????????????????????????????# | | ????????????????????????????????????????### ## ^ | | ??????????????????????????????????????????# ## | | ???????????????????????????????###????????# [ | | ???????????????????????????????# ????????# ! | | ???????????????????????????????# #????????# | | ???????????????????????????????# #????????## ## | +----------------------------------------------------+ Best States ------------- Heat Dissipation 37 Energy Generation 24 Energy Capacity 310 Matter Stores 300 Matter Capacity 300 Sight Range 16 Terrain Scan Density 10 ECM Strength 2 Additional Mass Support 9 Phase Shifting 5 Evasion (%) 68 Trap Extractor Capacity 6 Item Schematics ----------------- None Robot Schematics ------------------ None Fabricated ------------ Nothing Alien Tech Used ----------------- None Achievements -------------- None Challenges ------------ None Game ------ Seed MiniAdvancedRigger Manual? 0 Play Time 00:36:48 Cumulative 88.4 hours Start 2022.06.09 @ 05:16:49 End 2022.06.09 @ 05:52:19 Sessions 1 Manual Loads 0 Difficulty Rogue Special Mode None Game No. 141 Rogue 95 Adventurer 45 Explorer 1 Win Type - Total 0 Types 0/0/0/0/0/0/0/0/0 Lore% 27 Gallery% 48 Achievement% 34 Wizard Run 0 Options --------- ASCII 0 Keyboard 0 Movement Mouse Keybinds 0 Fullscreen 2 Font 18/X11Bold Map View 76x50 Tactical HUD 1 Map Filters NONE Filters LOW_CONTRAST(13,24,33)|BRIGHTNESS(90)|SATURATION(87) Steam 1 RUN: 2e88e27b-c200-4e8a-909b-ae4e90335667